fUSD/lending_fUSD_20260601
["ID","MTS","AMOUNT","RATE_DAILY","PERIOD"]
[423618528,1780262003000,-151.11014055,0.00029837,2]
[423618553,1780262003000,-172.15031486,0.00030137,2]
[423618542,1780262003000,-1398.8361295,0.0003,7]
[423618557,1780262003000,-600.6202867,0.00030699,2]
[423618550,1780262003000,-162.39,0.00030136,7]
[423618546,1780262003000,-560.52,0.00030136,30]
[423618549,1780262003000,-167.67,0.00030136,30]
[423618551,1780262003000,-294.77,0.00030136,30]
[423618555,1780262003000,-175.56,0.000302,2]
[423618548,1780262003000,-161.22,0.00030136,30]
[423618544,1780262003000,-399.0,0.0003,21]
[423618545,1780262003000,-560.49,0.00030015,2]
[423618543,1780262003000,-1398.8361295,0.0003,7]
[423618541,1780262003000,-650.0,0.0003,2]
[423618552,1780262003000,-184.22,0.00030136,30]
[423618547,1780262003000,-150.49,0.00030136,7]
[423618634,1780262004000,-221.4479812,0.00031319,2]
[423618632,1780262004000,-223.99623081,0.00031319,2]
[423618631,1780262004000,-523.87581627,0.00031319,2]
[423618627,1780262004000,-326.20632669,0.00031319,2]
[423618626,1780262004000,-167.53519908,0.00031319,2]
[423618620,1780262004000,-168.89801685,0.00031319,2]
[423618624,1780262004000,-709.59444224,0.00031319,2]
[423618628,1780262004000,-591.34841743,0.00031319,2]
[423618621,1780262004000,-324.24661211,0.00031319,2]
[423618623,1780262004000,-564.63661131,0.00031319,2]
[423618625,1780262004000,-432.64105938,0.00031319,2]
[423618622,1780262004000,-409.04772263,0.00031319,2]
[423618633,1780262004000,-161.7605977,0.00031319,2]
[423618640,1780262004000,-263.92985847,0.00031319,2]
[423618638,1780262004000,-286.50354401,0.00031319,2]
[423618637,1780262004000,-209.17887486,0.00031319,2]
[423618636,1780262004000,-210.18642198,0.00031319,2]
[423618642,1780262004000,-220.42239465,0.00031319,2]
[423618639,1780262004000,-453.33042164,0.00031319,2]
[423618641,1780262004000,-625.74532421,0.00031319,2]
[423618644,1780262004000,-332.65146291,0.00031319,2]
[423618655,1780262004000,-417.28035891,0.0003132,2]
[423618654,1780262004000,-535.14660617,0.0003132,2]
[423618643,1780262004000,-194.29013789,0.00031319,2]
[423618645,1780262004000,-221.28810732,0.00031319,2]
[423618647,1780262004000,-181.55662398,0.00031319,2]
[423618618,1780262004000,-306.82373803,0.00031319,2]
[423618646,1780262004000,-311.56224411,0.00031319,2]
[423618635,1780262004000,-303.65552139,0.00031319,2]
[423618630,1780262004000,-261.34289912,0.00031319,2]
[423618603,1780262004000,-180.99085874,0.00031319,2]
[423618619,1780262004000,-663.54310357,0.00031319,2]
[423618652,1780262004000,-255.60434003,0.0003132,2]
[423618592,1780262004000,-339.33268021,0.00031292,2]
[423618590,1780262004000,-223.0165902,0.00031292,2]
[423618591,1780262004000,-800.82704893,0.00031292,2]
[423618594,1780262004000,-385.17120045,0.00031292,2]
[423618593,1780262004000,-221.28890058,0.00031292,2]
[423618605,1780262004000,-287.30300736,0.00031319,2]
[423618604,1780262004000,-207.0828088,0.00031319,2]
[423618599,1780262004000,-198.81886785,0.00031292,2]
[423618597,1780262004000,-270.58749489,0.00031292,2]
[423618595,1780262004000,-182.93920076,0.00031292,2]
[423618601,1780262004000,-342.18876741,0.00031292,2]
[423618602,1780262004000,-411.21950331,0.00031319,2]
[423618629,1780262004000,-251.50099068,0.00031319,2]
[423618596,1780262004000,-598.74622776,0.00031292,2]
[423618600,1780262004000,-266.32638049,0.00031292,2]
[423618606,1780262004000,-170.72132621,0.00031319,2]
[423618609,1780262004000,-222.84643119,0.00031319,2]
[423618608,1780262004000,-762.95730847,0.00031319,2]
[423618607,1780262004000,-706.12941134,0.00031319,2]
[423618610,1780262004000,-155.0910775,0.00031319,2]
[423618616,1780262004000,-431.75728483,0.00031319,2]
[423618617,1780262004000,-470.43760523,0.00031319,2]
[423618612,1780262004000,-171.72346595,0.00031319,2]
[423618614,1780262004000,-516.45094458,0.00031319,2]
[423618613,1780262004000,-486.8667594,0.00031319,2]
[423618615,1780262004000,-733.19086313,0.00031319,2]
[423618611,1780262004000,-221.46768725,0.00031319,2]
[423618598,1780262004000,-252.77063511,0.00031292,2]
[423618648,1780262004000,-200.31006229,0.00031319,2]
[423618658,1780262004000,-519.21299051,0.0003132,2]
[423618650,1780262004000,-210.49025796,0.00031319,2]
[423618694,1780262004000,-219.34376692,0.00033804,14]
[423618693,1780262004000,-334.72,0.000334,14]
[423618683,1780262004000,-938.61798631,0.00032802,2]
[423618690,1780262004000,-573.391385,0.00033,14]
[423618692,1780262004000,-3995.26649161,0.00033372,2]
[423618688,1780262004000,-189.15039322,0.00032877,2]
[423618689,1780262004000,-174.57978558,0.00032877,30]
[423618691,1780262004000,-3995.26649161,0.00033283,2]
[423618696,1780262004000,-1095.05431737,0.00034137,2]
[423618695,1780262004000,-750.0,0.00034,2]
[423618698,1780262004000,-1335.17528983,0.00034137,2]
[423618699,1780262004000,-1283.08401048,0.00034137,2]
[423618697,1780262004000,-1235.72646985,0.00034137,2]
[423618687,1780262004000,-995.31465535,0.00032802,2]
[423618706,1780262004000,-217.15,0.0003513,30]
[423618704,1780262004000,-10000.26701589,0.00035,5]
[423618702,1780262004000,-1500.0,0.00034795,2]
[423618701,1780262004000,-2000.0,0.00034247,30]
[423618703,1780262004000,-849.25632345,0.00034849,120]
[423618705,1780262004000,-1398.8361295,0.00035,7]
[423618707,1780262004000,-150.0,0.00035556,7]
[423618709,1780262004000,-300.0,0.00035573,2]
[423618708,1780262004000,-150.0,0.00035556,7]
[423618710,1780262004000,-300.0,0.00035573,2]
[423618712,1780262004000,-300.0,0.00035573,2]
[423618713,1780262004000,-300.0,0.00035573,2]
[423618715,1780262004000,-300.0,0.00035573,2]
[423618649,1780262004000,-618.650178,0.00031319,2]
[423618700,1780262004000,-1067.09,0.0003419,30]
[423618686,1780262004000,-1099.7862947,0.00032802,2]
[423618711,1780262004000,-300.0,0.00035573,2]
[423618684,1780262004000,-1059.19411702,0.00032802,2]
[423618685,1780262004000,-1144.43596271,0.00032802,2]
[423618651,1780262004000,-222.64356364,0.0003132,2]
[423618657,1780262004000,-237.75956004,0.0003132,2]
[423618653,1780262004000,-370.22864018,0.0003132,2]
[423618714,1780262004000,-300.0,0.00035573,2]
[423618662,1780262004000,-286.01203973,0.0003132,2]
[423618664,1780262004000,-294.47976448,0.0003132,2]
[423618660,1780262004000,-234.10235637,0.0003132,2]
[423618656,1780262004000,-636.64926637,0.0003132,2]
[423618667,1780262004000,-3995.26649161,0.00031769,2]
[423618666,1780262004000,-174.57,0.00031507,30]
[423618661,1780262004000,-223.28446385,0.0003132,2]
[423618668,1780262004000,-334.72,0.000318,14]
[423618665,1780262004000,-1912.17,0.0003132,2]
[423618659,1780262004000,-167.38715557,0.0003132,2]
[423618681,1780262004000,-3995.26649161,0.00032408,2]
[423618663,1780262004000,-323.30682948,0.0003132,2]
[423618677,1780262004000,-191.12,0.000322,12]
[423618678,1780262004000,-3995.26649161,0.00032333,2]
[423618679,1780262004000,-175.065,0.00032399,32]
[423618675,1780262004000,-700.0,0.00032,2]
[423618676,1780262004000,-163.0,0.00032161,3]
[423618673,1780262004000,-916.48857891,0.00031913,2]
[423618672,1780262004000,-953.69663559,0.00031913,2]
[423618670,1780262004000,-882.66176418,0.00031913,2]
[423618674,1780262004000,-829.42887946,0.00031913,2]
[423618682,1780262004000,-1067.09,0.00032416,14]
[423618669,1780262004000,-3995.26649161,0.000319,2]
[423618671,1780262004000,-782.18165526,0.00031913,2]
[423618680,1780262004000,-420.729,0.00032399,32]
[423618745,1780262005000,-300.0,0.00035573,2]
[423618747,1780262005000,-300.0,0.00035573,2]
[423618756,1780262005000,-300.0,0.00035573,2]
[423618757,1780262005000,-300.0,0.00035573,2]
[423618755,1780262005000,-310.25089904,0.00035573,2]
[423618750,1780262005000,-1800.99236666,0.00035573,2]
[423618748,1780262005000,-866.17918798,0.00035573,2]
[423618753,1780262005000,-300.0,0.00035573,2]
[423618746,1780262005000,-300.0,0.00035573,2]
[423618751,1780262005000,-300.0,0.00035573,2]
[423618752,1780262005000,-300.0,0.00035573,2]
[423618754,1780262005000,-1149.64153705,0.00035573,2]
[423618761,1780262005000,-595.21497888,0.00035573,2]
[423618759,1780262005000,-300.0,0.00035573,2]
[423618769,1780262005000,-300.0,0.00035573,2]
[423618770,1780262005000,-300.0,0.00035573,2]
[423618763,1780262005000,-464.81458028,0.00035573,2]
[423618762,1780262005000,-300.0,0.00035573,2]
[423618765,1780262005000,-578.77492127,0.00035573,2]
[423618758,1780262005000,-1636.24753201,0.00035573,2]
[423618760,1780262005000,-300.0,0.00035573,2]
[423618766,1780262005000,-300.0,0.00035573,2]
[423618767,1780262005000,-452.85549676,0.00035573,2]
[423618744,1780262005000,-527.99519721,0.00035573,2]
[423618749,1780262005000,-950.98229606,0.00035573,2]
[423618743,1780262005000,-344.67640552,0.00035573,2]
[423618723,1780262005000,-300.0,0.00035573,2]
[423618740,1780262005000,-300.0,0.00035573,2]
[423618764,1780262005000,-300.0,0.00035573,2]
[423618716,1780262005000,-300.0,0.00035573,2]
[423618717,1780262005000,-493.71853303,0.00035573,2]
[423618718,1780262005000,-300.0,0.00035573,2]
[423618719,1780262005000,-435.63347121,0.00035573,2]
[423618731,1780262005000,-727.57003954,0.00035573,2]
[423618721,1780262005000,-300.0,0.00035573,2]
[423618720,1780262005000,-300.0,0.00035573,2]
[423618729,1780262005000,-535.11946239,0.00035573,2]
[423618724,1780262005000,-300.0,0.00035573,2]
[423618722,1780262005000,-605.70713704,0.00035573,2]
[423618727,1780262005000,-403.31610524,0.00035573,2]
[423618726,1780262005000,-300.0,0.00035573,2]
[423618725,1780262005000,-300.0,0.00035573,2]
[423618730,1780262005000,-300.0,0.00035573,2]
[423618728,1780262005000,-1069.16901834,0.00035573,2]
[423618732,1780262005000,-300.0,0.00035573,2]
[423618733,1780262005000,-302.42365621,0.00035573,2]
[423618735,1780262005000,-300.0,0.00035573,2]
[423618737,1780262005000,-300.0,0.00035573,2]
[423618736,1780262005000,-301.20088581,0.00035573,2]
[423618739,1780262005000,-300.0,0.00035573,2]
[423618741,1780262005000,-1264.80678045,0.00035573,2]
[423618742,1780262005000,-300.0,0.00035573,2]
[423618734,1780262005000,-300.0,0.00035573,2]
[423618738,1780262005000,-300.0,0.00035573,2]
[423618768,1780262005000,-300.0,0.00035573,2]
[423618773,1780262005000,-485.1231417,0.00035573,2]
[423618777,1780262005000,-300.0,0.00035573,2]
[423618804,1780262005000,-300.0,0.00035573,2]
[423618798,1780262005000,-300.0,0.00035573,2]
[423618806,1780262005000,-300.0,0.00035573,2]
[423618800,1780262005000,-300.0,0.00035573,2]
[423618802,1780262005000,-605.70713704,0.00035573,2]
[423618805,1780262005000,-300.0,0.00035573,2]
[423618815,1780262005000,-300.0,0.00035573,2]
[423618818,1780262005000,-300.0,0.00035573,2]
[423618810,1780262005000,-594.85069585,0.00035573,2]
[423618817,1780262005000,-300.0,0.00035573,2]
[423618816,1780262005000,-301.20088581,0.00035573,2]
[423618814,1780262005000,-300.0,0.00035573,2]
[423618819,1780262005000,-300.0,0.00035573,2]
[423618820,1780262005000,-300.0,0.00035573,2]
[423618813,1780262005000,-302.42365621,0.00035573,2]
[423618812,1780262005000,-300.0,0.00035573,2]
[423618811,1780262005000,-727.57003954,0.00035573,2]
[423618822,1780262005000,-1264.80678045,0.00035573,2]
[423618821,1780262005000,-300.0,0.00035573,2]
[423618827,1780262005000,-300.0,0.00035573,2]
[423618824,1780262005000,-344.67640552,0.00035573,2]
[423618826,1780262005000,-300.0,0.00035573,2]
[423618825,1780262005000,-527.99519721,0.00035573,2]
[423618823,1780262005000,-300.0,0.00035573,2]
[423618772,1780262005000,-300.0,0.00035573,2]
[423618801,1780262005000,-300.0,0.00035573,2]
[423618803,1780262005000,-300.0,0.00035573,2]
[423618809,1780262005000,-535.11946239,0.00035573,2]
[423618796,1780262005000,-493.71853303,0.00035573,2]
[423618771,1780262005000,-300.0,0.00035573,2]
[423618799,1780262005000,-300.0,0.00035573,2]
[423618775,1780262005000,-300.0,0.00035573,2]
[423618780,1780262005000,-325.24093541,0.00035573,2]
[423618776,1780262005000,-300.0,0.00035573,2]
[423618782,1780262005000,-1097.16968584,0.00035573,2]
[423618778,1780262005000,-300.0,0.00035573,2]
[423618774,1780262005000,-310.50110747,0.00035573,2]
[423618781,1780262005000,-300.0,0.00035573,2]
[423618783,1780262005000,-300.0,0.00035573,2]
[423618786,1780262005000,-300.0,0.00035573,2]
[423618787,1780262005000,-300.0,0.00035573,2]
[423618788,1780262005000,-300.0,0.00035573,2]
[423618779,1780262005000,-300.0,0.00035573,2]
[423618807,1780262005000,-403.31610524,0.00035573,2]
[423618808,1780262005000,-1069.16901834,0.00035573,2]
[423618785,1780262005000,-300.0,0.00035573,2]
[423618797,1780262005000,-300.0,0.00035573,2]
[423618792,1780262005000,-300.0,0.00035573,2]
[423618791,1780262005000,-300.0,0.00035573,2]
[423618793,1780262005000,-300.0,0.00035573,2]
[423618795,1780262005000,-300.0,0.00035573,2]
[423618790,1780262005000,-300.0,0.00035573,2]
[423618794,1780262005000,-300.0,0.00035573,2]
[423618784,1780262005000,-300.0,0.00035573,2]
[423618789,1780262005000,-300.0,0.00035573,2]
[423618866,1780262006000,-1067.09,0.00035964,30]
[423618868,1780262006000,-5800.0,0.00035975,2]
[423618864,1780262006000,-157.99575143,0.00035949,2]
[423618867,1780262006000,-5800.0,0.00035966,2]
[423618865,1780262006000,-5800.0,0.00035958,2]
[423618861,1780262006000,-157.99575143,0.00035675,2]
[423618862,1780262006000,-334.72,0.000357,14]
[423618863,1780262006000,-5800.0,0.00035949,2]
[423618860,1780262006000,-2319.0,0.00035626,11]
[423618869,1780262006000,-5800.0,0.00035983,2]
[423618859,1780262006000,-285.39,0.00035616,25]
[423618885,1780262006000,-1590.0,0.00036655,11]
[423618884,1780262006000,-2004.0,0.00036639,120]
[423618870,1780262006000,-5800.0,0.00035992,2]
[423618873,1780262006000,-800.0,0.00036,2]
[423618876,1780262006000,-432.77,0.00036224,7]
[423618872,1780262006000,-5800.0,0.00036,2]
[423618877,1780262006000,-34745.0,0.000364,30]
[423618874,1780262006000,-411.18032838,0.00036207,2]
[423618878,1780262006000,-1009.8,0.00036406,7]
[423618879,1780262006000,-935.71,0.00036406,7]
[423618875,1780262006000,-157.99575143,0.00036223,2]
[423618881,1780262006000,-417.41,0.00036639,120]
[423618883,1780262006000,-2000.0,0.00036639,120]
[423618858,1780262006000,-156.19,0.00035616,25]
[423618880,1780262006000,-157.99575143,0.00036497,2]
[423618853,1780262006000,-300.0,0.00035573,2]
[423618829,1780262006000,-866.17918798,0.00035573,2]
[423618855,1780262006000,-485.1231417,0.00035573,2]
[423618832,1780262006000,-300.0,0.00035573,2]
[423618830,1780262006000,-950.98229606,0.00035573,2]
[423618833,1780262006000,-300.0,0.00035573,2]
[423618831,1780262006000,-1800.99236666,0.00035573,2]
[423618828,1780262006000,-300.0,0.00035573,2]
[423618834,1780262006000,-300.0,0.00035573,2]
[423618836,1780262006000,-310.25089904,0.00035573,2]
[423618837,1780262006000,-300.0,0.00035573,2]
[423618838,1780262006000,-300.0,0.00035573,2]
[423618835,1780262006000,-1149.64153705,0.00035573,2]
[423618845,1780262006000,-464.81458028,0.00035573,2]
[423618840,1780262006000,-300.0,0.00035573,2]
[423618854,1780262006000,-300.0,0.00035573,2]
[423618839,1780262006000,-1636.24753201,0.00035573,2]
[423618843,1780262006000,-595.21497888,0.00035573,2]
[423618841,1780262006000,-300.0,0.00035573,2]
[423618844,1780262006000,-300.0,0.00035573,2]
[423618847,1780262006000,-578.77492127,0.00035573,2]
[423618857,1780262006000,-14570.66552654,0.00035616,10]
[423618846,1780262006000,-300.0,0.00035573,2]
[423618849,1780262006000,-452.85549676,0.00035573,2]
[423618848,1780262006000,-300.0,0.00035573,2]
[423618850,1780262006000,-300.0,0.00035573,2]
[423618856,1780262006000,-310.50110747,0.00035573,2]
[423618851,1780262006000,-300.0,0.00035573,2]
[423618852,1780262006000,-300.0,0.00035573,2]
[423618842,1780262006000,-300.0,0.00035573,2]
[423618891,1780262006000,-334.72,0.00037,14]
[423618871,1780262006000,-219.34376692,0.00035995,120]
[423618892,1780262006000,-157.99575143,0.00037045,2]
[423618929,1780262006000,-150.0,0.00038959,2]
[423618918,1780262006000,-1633.0,0.00038329,120]
[423618920,1780262006000,-6916.68271177,0.00038353,2]
[423618921,1780262006000,-157.99575143,0.00038415,2]
[423618926,1780262006000,-1000.0,0.00038717,60]
[423618928,1780262006000,-350.0,0.00038851,7]
[423618925,1780262006000,-157.99575143,0.00038689,2]
[423618924,1780262006000,-605.99032272,0.00038561,7]
[423618922,1780262006000,-171.71,0.00038493,30]
[423618923,1780262006000,-200.77908344,0.0003853,30]
[423618927,1780262006000,-34745.0,0.000388,30]
[423618937,1780262006000,-174.19,0.00039122,2]
[423618919,1780262006000,-1633.0,0.00038329,120]
[423618936,1780262006000,-151.0,0.00039122,2]
[423618938,1780262006000,-151.0,0.00039137,14]
[423618935,1780262006000,-151.0,0.00039122,2]
[423618934,1780262006000,-89431.0,0.000391,7]
[423618930,1780262006000,-157.99575143,0.00038963,2]
[423618931,1780262006000,-728.42235911,0.00038964,8]
[423618933,1780262006000,-2000.0,0.00039065,5]
[423618932,1780262006000,-3596.79,0.00038986,2]
[423618939,1780262006000,-555.0,0.00039144,10]
[423618940,1780262006000,-4598.97015652,0.00039178,30]
[423618943,1780262006000,-300.0,0.00039178,120]
[423618942,1780262006000,-300.0,0.00039178,120]
[423618886,1780262006000,-157.99575143,0.00036771,2]
[423618941,1780262006000,-300.0,0.00039178,120]
[423618917,1780262006000,-2201.5,0.00038329,120]
[423618944,1780262006000,-96.3533259,0.00039178,120]
[423618913,1780262006000,-219.34376692,0.00038187,120]
[423618912,1780262006000,-2334.0,0.0003817,11]
[423618882,1780262006000,-1999.0,0.00036639,120]
[423618889,1780262006000,-158.27513684,0.00036822,2]
[423618888,1780262006000,-155.21800193,0.00036799,60]
[423618890,1780262006000,-7985.0,0.00037,120]
[423618893,1780262006000,-8000.0,0.000372,30]
[423618896,1780262006000,-157.99575143,0.00037319,2]
[423618902,1780262006000,-2441.4315828,0.00037856,2]
[423618895,1780262006000,-156.64981509,0.000373,30]
[423618894,1780262006000,-156.6498151,0.000373,30]
[423618904,1780262006000,-500.0,0.00037895,60]
[423618905,1780262006000,-503.19129414,0.00037895,60]
[423618897,1780262006000,-2000.0,0.00037562,2]
[423618887,1780262006000,-171.09000962,0.00036799,60]
[423618898,1780262006000,-10000.0,0.00037562,2]
[423618903,1780262006000,-157.99575143,0.00037867,2]
[423618914,1780262006000,-150.0,0.00038249,120]
[423618906,1780262006000,-1000.0,0.00037895,60]
[423618915,1780262006000,-334.72,0.000383,14]
[423618907,1780262006000,-29075.74,0.00038,20]
[423618910,1780262006000,-218.43488031,0.00038141,2]
[423618908,1780262006000,-850.0,0.00038,2]
[423618909,1780262006000,-1011.0151,0.000381,120]
[423618916,1780262006000,-2201.5,0.00038329,120]
[423618901,1780262006000,-1067.09,0.00037737,30]
[423618899,1780262006000,-157.99575143,0.00037593,2]
[423618900,1780262006000,-34745.0,0.000376,30]
[423618911,1780262006000,-157.99575143,0.00038141,2]
[423618982,1780262007000,-300.0,0.00039178,120]
[423618981,1780262007000,-300.0,0.00039178,120]
[423618980,1780262007000,-300.0,0.00039178,120]
[423618978,1780262007000,-300.0,0.00039178,120]
[423618977,1780262007000,-300.0,0.00039178,120]
[423618976,1780262007000,-300.0,0.00039178,120]
[423618979,1780262007000,-300.0,0.00039178,120]
[423618985,1780262007000,-300.0,0.00039178,120]
[423618973,1780262007000,-300.0,0.00039178,120]
[423618987,1780262007000,-300.0,0.00039178,120]
[423618972,1780262007000,-300.0,0.00039178,120]
[423618993,1780262007000,-2000.0,0.00039199,16]
[423618986,1780262007000,-300.0,0.00039178,120]
[423618984,1780262007000,-300.0,0.00039178,120]
[423618988,1780262007000,-300.0,0.00039178,120]
[423618990,1780262007000,-300.0,0.00039178,120]
[423618991,1780262007000,-300.0,0.00039178,120]
[423618997,1780262007000,-157.99575143,0.00039237,2]
[423618998,1780262007000,-2000.0,0.0003924,50]
[423618992,1780262007000,-318.064063,0.00039178,120]
[423618995,1780262007000,-2000.0,0.00039199,39]
[423618999,1780262007000,-2000.0,0.0003924,35]
[423618974,1780262007000,-300.0,0.00039178,120]
[423618994,1780262007000,-2000.0,0.00039199,18]
[423618983,1780262007000,-300.0,0.00039178,120]
[423618970,1780262007000,-300.0,0.00039178,120]
[423618955,1780262007000,-300.0,0.00039178,120]
[423618969,1780262007000,-300.0,0.00039178,120]
[423618996,1780262007000,-937.26492261,0.000392,30]
[423618946,1780262007000,-203.6466741,0.00039178,120]
[423618950,1780262007000,-300.0,0.00039178,120]
[423618947,1780262007000,-300.0,0.00039178,120]
[423618948,1780262007000,-300.0,0.00039178,120]
[423618951,1780262007000,-300.0,0.00039178,120]
[423618945,1780262007000,-300.0,0.00035573,2]
[423618949,1780262007000,-300.0,0.00039178,120]
[423618953,1780262007000,-300.0,0.00039178,120]
[423618963,1780262007000,-300.0,0.00039178,120]
[423618954,1780262007000,-300.0,0.00039178,120]
[423618952,1780262007000,-300.0,0.00039178,120]
[423618956,1780262007000,-300.0,0.00039178,120]
[423618961,1780262007000,-300.0,0.00039178,120]
[423618962,1780262007000,-300.0,0.00039178,120]
[423618958,1780262007000,-300.0,0.00039178,120]
[423618959,1780262007000,-300.0,0.00039178,120]
[423618957,1780262007000,-300.0,0.00039178,120]
[423618960,1780262007000,-300.0,0.00039178,120]
[423618964,1780262007000,-300.0,0.00039178,120]
[423618968,1780262007000,-300.0,0.00039178,120]
[423618975,1780262007000,-300.0,0.00039178,120]
[423618966,1780262007000,-300.0,0.00039178,120]
[423618965,1780262007000,-300.0,0.00039178,120]
[423618967,1780262007000,-300.0,0.00039178,120]
[423618971,1780262007000,-300.0,0.00039178,120]
[423619001,1780262007000,-152.01,0.00039242,2]
[423618989,1780262007000,-300.0,0.00039178,120]
[423619000,1780262007000,-2000.0,0.0003924,31]
[423619033,1780262007000,-3000.0,0.00039341,30]
[423619036,1780262007000,-3000.0,0.00039341,30]
[423619034,1780262007000,-3000.0,0.00039341,30]
[423619038,1780262007000,-3000.0,0.00039341,30]
[423619028,1780262007000,-3000.0,0.00039341,30]
[423619037,1780262007000,-3000.0,0.00039341,30]
[423619029,1780262007000,-1305.58713423,0.00039341,30]
[423619043,1780262007000,-5000.0,0.00039361,2]
[423619041,1780262007000,-178.090746,0.00039341,120]
[423619051,1780262007000,-256.78,0.0003937,120]
[423619039,1780262007000,-178.090746,0.00039341,120]
[423619042,1780262007000,-2000.0,0.0003935,32]
[423619035,1780262007000,-3000.0,0.00039341,30]
[423619050,1780262007000,-200.0,0.0003937,120]
[423619047,1780262007000,-2000.0,0.00039365,6]
[423619044,1780262007000,-5000.0,0.00039361,2]
[423619048,1780262007000,-200.0,0.0003937,120]
[423619046,1780262007000,-250.0,0.00039361,2]
[423619045,1780262007000,-250.0,0.00039361,2]
[423619049,1780262007000,-200.0,0.0003937,120]
[423619054,1780262007000,-700898.875991,0.00039395,7]
[423619056,1780262007000,-25616.54549488,0.00039414,2]
[423619057,1780262007000,-999.18732305,0.00039415,2]
[423619053,1780262007000,-2000.0,0.0003939,24]
[423619011,1780262007000,-197.429999,0.000393,46]
[423619055,1780262007000,-643.0,0.000394,2]
[423619052,1780262007000,-20000.0,0.0003939,20]
[423619030,1780262007000,-1694.41286577,0.00039341,30]
[423619040,1780262007000,-178.090746,0.00039341,120]
[423619032,1780262007000,-3000.0,0.00039341,30]
[423619026,1780262007000,-2021.50048968,0.00039341,30]
[423619004,1780262007000,-15854.4958949,0.00039299,7]
[423619003,1780262007000,-400.0,0.0003927,2]
[423619005,1780262007000,-150.0,0.00039299,2]
[423619008,1780262007000,-2000.0,0.00039299,3]
[423619007,1780262007000,-193.281,0.00039299,2]
[423619009,1780262007000,-2000.0,0.00039299,46]
[423619002,1780262007000,-400.0,0.0003927,2]
[423619010,1780262007000,-2000.0,0.00039299,29]
[423619012,1780262007000,-213.490001,0.000393,46]
[423619014,1780262007000,-164.48124129,0.00039332,120]
[423619015,1780262007000,-173.37045842,0.00039332,120]
[423619013,1780262007000,-2321.3,0.000393,120]
[423619006,1780262007000,-150.0,0.00039299,2]
[423619019,1780262007000,-3000.0,0.00039341,30]
[423619031,1780262007000,-3000.0,0.00039341,30]
[423619027,1780262007000,-110.74719811,0.00039341,30]
[423619024,1780262007000,-867.75231221,0.00039341,30]
[423619018,1780262007000,-183.22260164,0.00039332,120]
[423619016,1780262007000,-183.22260165,0.00039332,120]
[423619025,1780262007000,-300.0,0.00035573,2]
[423619021,1780262007000,-3000.0,0.00039341,30]
[423619020,1780262007000,-3000.0,0.00039341,30]
[423619022,1780262007000,-2638.2390408,0.00039341,30]
[423619023,1780262007000,-3000.0,0.00039341,30]
[423619017,1780262007000,-173.3704584,0.00039332,120]
[423619096,1780262008000,-300.0,0.0003951,10]
[423619103,1780262008000,-618.72,0.00039511,120]
[423619101,1780262008000,-618.72,0.00039511,120]
[423619100,1780262008000,-618.72,0.00039511,120]
[423619099,1780262008000,-618.72,0.00039511,120]
[423619094,1780262008000,-300.0,0.0003951,10]
[423619098,1780262008000,-618.76,0.00039511,120]
[423619093,1780262008000,-300.0,0.0003951,10]
[423619097,1780262008000,-191.395096,0.0003951,34]
[423619091,1780262008000,-151.0,0.00039508,14]
[423619086,1780262008000,-500.0,0.000395,14]
[423619095,1780262008000,-300.0,0.0003951,10]
[423619104,1780262008000,-618.72,0.00039511,120]
[423619115,1780262008000,-172.61954781,0.00039511,30]
[423619117,1780262008000,-203.26,0.00039511,2]
[423619107,1780262008000,-618.72,0.00039511,120]